bitfinex/quotes_ETHUSD_20251126
["timestamp","ask_amount","ask_price","bid_price","bid_amount"]
[1764178418339,3.33633603,2997.3,2996.2,1.6535665]
[1764178418549,3.33633603,2997.3,2995.5,3.33827913]
[1764178418550,3.33633603,2997.3,2997.2,0.1]
[1764178418852,4.03003603,2997.3,2997.2,0.1]
[1764178419369,4.03003603,2997.3,2997.1,1.6535665]
[1764178419668,4.03003603,2997.3,2996.3,2.85703058]
[1764178419669,0.69312062,2997.9,2997.2,1.7535665]
[1764178419887,0.69312062,2997.9,2995.9,4.09984281]
[1764178419888,3.33768542,2997.9,2997.8,0.1]
[1764178420244,0.002,2997.9,2997.8,0.1]
[1764178420544,0.002,2997.9,2997.8,1.81086575]
[1764178420882,0.002,2997.9,2997.8,1.8153398]
[1764178421240,0.002,2997.9,2997.8,1.81847791]
[1764178421566,0.002,2997.9,2997.8,0.1]
[1764178422343,0.0935959,2999.0,2997.9,15.855893]
[1764178422653,0.1824,3000.1,2999.7,0.1]
[1764178422847,3.82672355,2999.8,2999.7,0.1]
[1764178423056,1.2676716,2999.8,2999.7,0.1]
[1764178423269,0.03746798,2999.8,2999.7,0.09479]
[1764178423574,0.03746798,2999.8,2998.2,2.28616905]
[1764178423575,0.4557,2999.7,2998.3,2.28616905]
[1764178423798,0.4557,2999.7,2998.1,2.85703058]
[1764178423799,0.239,2999.7,2999.0,0.1]
[1764178424070,1.42029411,2999.7,2999.0,0.1]
[1764178424244,1.42029411,2999.7,2997.5,2.28616905]
[1764178424245,8.82458567,2999.3,2997.5,2.28616905]
[1764178424442,8.82458567,2998.5,2997.0,0.0008]
[1764178424642,8.82458567,2998.5,2996.2,3.33754109]
[1764178424643,0.405504,2998.3,2996.3,2.28616905]
[1764178424846,1.13109811,2997.8,2997.2,0.1]
[1764178425063,0.405504,2998.3,2997.5,0.1]
[1764178425064,0.99556838,2997.7,2997.5,0.1]
[1764178425282,0.4563,2998.2,2998.1,0.1]
[1764178425474,0.6953,2998.2,2997.9,0.1]
[1764178425965,0.6953,2998.1,2998.0,0.1]
[1764178426276,4.75633989,2998.1,2996.6,2.28616905]
[1764178426479,0.6953,2998.0,2997.9,0.1]
[1764178426651,1.26547857,2998.0,2997.6,0.1]
[1764178426979,1.26547857,2998.0,2995.1,0.05]
[1764178426980,1.13109811,2997.6,2996.0,0.1]
[1764178427157,0.72559411,2996.5,2994.7,2.28616905]
[1764178427359,0.405504,2996.3,2994.6,2.28616905]
[1764178427559,0.4563,2996.4,2994.4,2.28616905]
[1764178427882,0.239,2996.3,2996.2,0.1]
[1764178428060,0.239,2996.3,2994.7,2.28616905]
[1764178428374,4.06315502,2996.2,2994.7,2.28616905]
[1764178428577,4.06315502,2996.2,2996.1,0.1]
[1764178428578,3.33756091,2996.2,2996.1,0.1]
[1764178428780,3.33756091,2996.2,2994.7,5.62530747]
[1764178428781,6.67512182,2996.2,2995.0,0.1321]
[1764178429089,3.33756091,2996.2,2996.1,0.1]
[1764178429254,4.46137309,2996.2,2996.1,0.1]
[1764178429652,7.798934,2996.2,2995.9,0.1]
[1764178429885,6.67378536,2996.8,2996.3,0.1]
[1764178430180,3.33689268,2996.8,2996.7,0.1]
[1764178430586,3.57589268,2996.8,2996.7,0.1]
[1764178430790,3.33689268,2996.8,2996.7,0.1]
[1764178430986,7.36908536,2996.8,2996.6,0.1]
[1764178431283,8.00306021,2996.8,2995.5,2.28616905]
[1764178431455,4.66616753,2996.8,2996.7,0.1]
[1764178431851,4.66616753,2996.8,2993.0,1.65294064]
[1764178431852,8.45936021,2996.8,2996.6,0.1]
[1764178432179,1.18189411,2996.7,2996.6,0.1]
[1764178432365,4.51889814,2996.7,2996.6,0.1]
[1764178432703,4.75689814,2996.7,2996.6,0.1]
[1764178432870,8.09390217,2996.7,2996.5,0.1]
[1764178433188,0.72559411,2996.5,2995.7,0.1]
[1764178433359,0.72559411,2996.5,2995.1,2.28616905]
[1764178433360,1.18189411,2996.6,2996.3,0.1]
[1764178433555,0.238,2996.4,2996.3,0.1]
[1764178433965,0.6943,2996.4,2996.3,0.1]
[1764178434160,0.6943,2996.4,2995.0,2.28616905]
[1764178434390,3.33744952,2996.3,2996.2,0.1]
[1764178434572,4.06272359,2996.6,2996.2,0.1]
[1764178434756,0.4563,2997.0,2995.0,2.28616905]
[1764178434757,0.238,2996.5,2995.2,12.484101]
[1764178434962,7.59605679,2996.9,2996.7,0.1]
[1764178434963,0.72559411,2996.8,2996.7,0.1]
[1764178435358,1.18189411,2996.8,2996.7,0.1]
[1764178435890,6.87046268,2996.9,2996.8,0.1]
[1764178435891,3.33678134,2996.9,2996.8,0.1]
[1764178436086,3.57478134,2996.9,2996.8,0.1]
[1764178436501,4.03108134,2996.9,2996.8,0.1]
[1764178436796,4.51867545,2996.9,2996.8,0.1]
[1764178437013,3.33622472,2997.4,2996.3,0.0008]
[1764178437302,3.33622472,2997.4,2996.1,0.1]
[1764178437303,0.238,2997.9,2997.2,0.1]
[1764178437467,0.238,2997.9,2997.8,0.1]
[1764178437877,0.6943,2997.9,2997.8,0.1]
[1764178438371,0.6943,2997.9,2996.4,5.85550918]
[1764178438372,7.1276366,2997.9,2996.4,5.85550918]
[1764178438570,3.7919683,2997.9,2997.8,0.1]
[1764178438884,4.87162922,2997.9,2997.8,0.1]
[1764178439100,4.65332922,2997.9,2997.8,0.1]
[1764178439268,8.44529752,2997.9,2997.7,0.1]
[1764178439459,0.72559411,2997.8,2997.7,0.1]
[1764178439791,1.18189411,2997.8,2996.3,0.001]
[1764178439962,1.82122282,2997.7,2997.6,0.1]
[1764178440285,3.67108751,2998.1,2996.3,3.33839779]
[1764178440286,0.002,2998.1,2998.0,0.1]
[1764178440491,0.002,2998.1,2998.0,0.3321]
[1764178440693,0.002,2998.1,2998.0,16.54644303]
[1764178440896,3.3367034,2999.7,2999.6,0.1]
[1764178441059,0.003,2999.7,2999.6,0.1]
[1764178441904,0.003,2999.7,2999.2,0.1301]
[1764178442197,0.003,2999.7,2999.5,0.1]
[1764178442360,0.003,2999.7,2999.6,13.541411]
[1764178442562,0.03746798,2999.8,2999.7,10.69076]
[1764178442789,0.03746798,2999.8,2999.7,10.91786]
[1764178442964,0.03746798,2999.8,2999.7,9.821804]
[1764178443168,0.03746798,2999.8,2999.7,12.437529]
[1764178443368,0.03746798,2999.8,2999.7,0.1]
[1764178443571,0.03746798,2999.8,2999.5,6.026446]
[1764178443770,0.03746798,2999.8,2999.7,0.1]
[1764178444683,3.37102355,2999.8,2999.7,0.1]
[1764178444871,4.09997107,2999.8,2999.7,0.1]
[1764178445188,6.70457912,2999.8,2998.4,3.33506535]
[1764178445492,3.60902355,2999.8,2998.3,5.273478]
[1764178445658,3.60902355,2999.8,2998.7,18.165084]
[1764178445659,3.37102355,2999.8,2998.7,18.165084]
[1764178445864,3.37102355,2999.8,2999.7,0.1]
[1764178446272,10.53603469,2999.8,2999.5,0.1]
[1764178446470,10.53603469,2999.8,2998.2,4.851303]
[1764178446471,1.05360347,2999.7,2998.2,4.851303]
[1764178446675,1.05360347,2999.7,2999.0,0.0008]
[1764178446872,1.05360347,2999.7,2997.9,0.72559411]
[1764178446873,0.4979,2999.6,2999.3,0.1]
[1764178447073,0.238,2999.5,2999.4,0.1]
[1764178447278,0.4979,2999.6,2999.4,0.1]
[1764178447478,0.96360976,2999.5,2999.4,0.1]
[1764178447673,0.7359,2999.5,2999.4,0.1]
[1764178447873,0.7359,2999.5,2997.7,6.87177033]
[1764178448091,0.4979,2999.5,2999.4,0.1]
[1764178448261,1.05360347,2999.7,2999.6,0.1]
[1764178448262,4.38727017,2999.7,2999.6,0.1]
[1764178448469,4.62527017,2999.7,2999.6,0.1]
[1764178448669,4.88517017,2999.7,2999.6,0.1]
[1764178448897,5.12317017,2999.7,2999.6,0.1]
[1764178449201,3.37104335,2999.8,2998.5,0.2]
[1764178449397,3.37104335,2999.8,2999.7,0.1]
[1764178449563,0.03746798,2999.8,2999.7,0.1]
[1764178449768,0.03746798,2999.8,2999.7,0.3]
[1764178449969,0.03746798,2999.8,2999.7,0.1]
[1764178450794,0.03746798,2999.8,2999.7,0.3]
[1764178451092,0.03746798,2999.8,2999.7,3.519995]
[1764178451273,0.03746798,2999.8,2999.7,3.319995]
[1764178451473,0.03746798,2999.8,2999.7,2.411273]
[1764178451794,0.58496014,3000.0,2999.7,2.411273]
[1764178451795,0.58496014,3000.0,2999.9,30.0]
[1764178452091,0.58496014,3000.0,2999.9,29.15701611]
[1764178452292,6.66022844,3002.9,3002.1,0.0008]
[1764178452465,0.68571284,3002.8,3000.4,3.33278853]
[1764178452664,9.06258567,3002.7,3000.2,0.238]
[1764178452865,0.4979,3002.7,3001.2,0.0008]
[1764178453069,8.82458567,3002.3,3000.2,0.238]
[1764178453293,8.82458567,3002.3,2999.5,0.72559411]
[1764178453294,1.38035857,3002.2,3001.8,0.0994]
[1764178453498,1.46149411,3002.1,3001.9,0.0994]
[1764178453796,1.46149411,3002.1,2999.7,0.238]
[1764178453797,0.4979,3002.1,3000.2,10.926873]
[1764178453972,0.7369,3002.0,2999.9,8.719532]
[1764178454169,0.7369,3002.0,2999.9,0.0994]
[1764178454371,6.663557,3001.4,2999.8,9.1514]
[1764178454685,0.73891511,3001.3,3001.2,0.0964]
[1764178454891,1.17321511,3001.3,3001.2,0.0994]
[1764178455185,1.64431511,3001.3,2999.5,3.33628898]
[1764178455386,0.4711,3001.2,3001.1,0.0994]
[1764178455587,1.51698721,3001.2,3001.1,0.0994]
[1764178455774,0.1953,3001.3,3001.1,0.0994]
[1764178455978,0.1953,3001.3,3001.2,0.0994]
[1764178456390,3.76518951,3001.3,3001.2,0.0994]
[1764178456871,3.99828951,3001.3,3001.2,0.0994]
[1764178457219,3.99828951,3001.3,2999.5,0.001]
[1764178457220,3.33134627,3001.8,3001.7,0.0008]
[1764178457366,3.33134627,3001.8,2999.5,0.001]
[1764178457367,10.89828328,3001.8,3001.4,0.0994]
[1764178457571,0.96359411,3001.7,3001.4,0.0994]
[1764178457799,0.1953,3001.5,2999.9,18.896127]
[1764178458084,0.1953,3001.5,3001.4,0.0994]
[1764178458482,3.76496749,3001.5,3001.4,0.0994]
[1764178458685,4.30917862,3001.5,3001.4,0.0994]
[1764178458867,5.01827862,3001.5,3001.4,0.0994]
[1764178459275,5.01827862,3001.5,3000.0,3.33325426]
[1764178459276,11.6816136,3001.5,3000.0,3.33325426]
[1764178459475,4.54717862,3001.5,3001.4,0.0994]
[1764178459677,4.54717862,3001.5,2999.5,0.001]
[1764178459678,1.13109811,3001.4,3000.3,0.0994]
[1764178459983,1.13109811,3001.4,2999.5,0.001]
[1764178459984,0.643504,3001.3,2999.5,0.001]
[1764178460296,0.643504,3001.3,2997.8,8.175405]
[1764178460297,0.1953,2999.6,2997.8,8.175405]
[1764178460495,0.1953,2999.6,2997.7,6.67178168]
[1764178460496,6.66777796,2999.5,2998.6,0.1]
[1764178460695,6.66777796,2999.5,2998.0,3.33555703]
[1764178460696,0.238,3000.5,2998.4,18.834467]
[1764178460914,0.4711,2999.9,2999.8,0.1]
[1764178461407,0.4711,2999.9,2998.4,2.33818]
[1764178461706,0.238,2999.8,2998.4,12.488672]
[1764178461909,0.238,2999.8,2997.9,0.0026]
[1764178462116,0.238,2999.8,2996.8,8.87458567]
[1764178462117,0.72559411,2999.4,2998.1,0.1]
[1764178462419,0.4711,2999.7,2996.9,0.1]
[1764178462420,0.72559411,2998.6,2996.9,0.1]
[1764178462587,0.72559411,2998.6,2997.0,8.740343]
[1764178462588,0.238,2998.5,2997.0,8.740343]
[1764178462778,0.6664,2998.5,2998.3,0.1]
[1764178462974,0.6664,2998.5,2997.0,2.417167]
[1764178462975,3.3346672,2998.8,2997.1,0.2026]
[1764178463281,0.95501798,2999.3,2997.1,0.2026]
[1764178463282,3.52863939,3000.0,2999.9,0.1]
[1764178463489,3.52863939,3000.0,2999.0,0.1026]
[1764178463694,3.80424997,3000.2,2999.9,0.1]
[1764178463903,3.33314997,3000.2,3000.1,0.1]
[1764178464105,0.1953,3000.6,3000.1,0.1]
[1764178464335,0.1953,3000.6,3000.4,0.1]
[1764178464336,0.4711,3000.5,3000.4,0.1]
[1764178464532,3.76604301,3000.6,2999.1,3.33433363]
[1764178464692,3.76604301,3000.6,3000.5,0.1]
[1764178465020,3.52796679,3000.6,3000.5,0.1]
[1764178465213,3.52796679,3000.6,2999.1,3.33433363]
[1764178465214,0.4711,3000.5,3000.4,0.1]
[1764178465629,1.13109811,3000.4,2999.9,0.1]
[1764178465800,0.238,3000.3,2998.2,3.33529036]
[1764178465988,0.238,3000.3,2998.4,0.1]
[1764178465989,0.405504,3000.2,2998.4,0.1]
[1764178466193,1.13109811,3000.2,2999.8,0.1]
[1764178466431,0.72559411,2999.9,2999.8,0.1]
[1764178466889,1.43469411,2999.9,2998.4,3.33510167]
[1764178467095,0.238,2999.8,2998.4,6.87281372]
[1764178467314,6.66666666,3000.0,2999.7,0.1]
[1764178467557,3.33333333,3000.0,2999.9,0.1]
[1764178467823,4.07508039,3000.0,2999.9,0.1]
[1764178468326,4.78318039,3000.0,2999.9,0.1]
[1764178469118,4.04143333,3000.0,2999.9,0.1]
[1764178471025,0.405504,2999.9,2999.4,0.1]
[1764178471228,0.237,2999.8,2999.7,0.1]
[1764178471451,1.19669411,2999.9,2999.7,0.1]
[1764178471615,1.59076941,2999.8,2999.7,0.1]
[1764178471942,1.82776941,2999.8,2999.7,0.1]
[1764178472625,5.88691909,2999.8,2999.7,0.1]
[1764178473062,7.75068453,3000.4,2997.5,7.58318053]
[1764178473063,2.43069709,3002.6,2999.6,0.1026]
[1764178473210,0.09999999,3002.7,3001.7,0.1]
[1764178473211,3.33089068,3002.2,3001.7,0.1]
[1764178473413,0.4711,3002.1,3002.0,0.1]
[1764178473716,0.1953,3002.3,3002.0,0.1]
[1764178474023,3.99717973,3002.3,3002.2,0.1]
[1764178474229,3.99717973,3002.3,3000.3,14.577291]
[1764178474230,8.08457061,3002.3,3000.3,14.577291]
[1764178474411,0.4711,3002.2,3002.0,0.1]
[1764178474757,1.13109811,3002.0,3001.4,0.1]
[1764178475111,0.4711,3001.9,2999.8,6.66707696]
[1764178475440,0.7091,3001.9,3001.8,0.1]
[1764178475822,0.4711,3001.9,3001.8,0.1]
[1764178476025,0.238,3001.9,3001.8,0.1]
[1764178476233,6.66200326,3002.1,3001.8,0.1]
[1764178476433,3.33092139,3002.2,3002.0,0.1]
[1764178476723,3.33092139,3002.2,3002.1,0.1]
[1764178477270,3.33055673,3002.6,3001.7,3.33136665]
[1764178477418,3.33055673,3002.6,3000.5,0.238]
[1764178477419,0.4711,3002.5,3000.5,0.72559411]
[1764178477618,0.4711,3002.5,3002.4,0.1]
[1764178477814,6.99416913,3002.6,3002.4,0.095]
[1764178478018,7.46526913,3002.6,3000.6,6.29478551]
[1764178478259,3.33011422,3002.9,3000.7,13.966607]
[1764178478417,10.46144266,3002.9,3000.7,8.236441]
[1764178478616,3.80121422,3002.9,3002.8,0.1]
[1764178478832,4.03921422,3002.9,3002.8,0.07071]
[1764178479037,4.03921422,3002.9,3000.8,9.70457211]
[1764178479265,4.03921422,3002.9,3000.9,20.32436]
[1764178479266,0.75645649,3002.8,3000.9,20.32436]
[1764178479574,1.46455649,3002.8,3002.7,0.1]
[1764178479775,3.57758649,3002.8,3002.7,0.1]
[1764178479986,3.57758649,3002.8,3001.1,13.281543]
[1764178479987,3.30972411,3002.7,3001.1,13.281543]
[1764178480280,0.75645649,3002.8,3000.7,0.72559411]
[1764178480451,4.03821422,3002.9,3002.8,0.1]
[1764178481067,4.03821422,3002.9,3001.5,18.648997]
[1764178481068,0.72559411,3002.8,3001.5,18.648997]
[1764178481247,0.72559411,3002.8,3001.4,0.237]
[1764178481248,7.13132844,3002.9,3002.7,0.1]
[1764178481467,4.03821422,3002.9,3002.8,0.1]
[1764178481638,3.80121422,3002.9,3002.8,0.1]
[1764178481839,3.33011422,3002.9,3002.8,0.1]
[1764178482183,3.33011422,3002.9,3000.7,0.1]
[1764178482184,0.72559411,3002.8,3000.7,0.1]
[1764178482349,1.19669411,3002.8,3001.1,0.0008]
[1764178482674,3.33033603,3002.7,3001.1,0.1]
[1764178482843,3.56733603,3002.7,3002.6,0.1]
[1764178483180,3.33033603,3002.7,3002.6,0.1]
[1764178483339,0.237,3003.1,3002.6,0.1]
[1764178483341,3.52435373,3003.9,3002.6,0.237]
[1764178483677,3.52435373,3003.9,3001.4,7.34518053]
[1764178483678,0.1953,3004.9,3001.4,7.34518053]
[1764178483679,3.32665971,3006.1,3004.9,0.1]
[1764178483986,0.1953,3006.4,3004.9,0.1]
[1764178483987,0.1953,3005.9,3004.9,0.1]
[1764178484187,0.850017,3005.0,3004.9,0.1008]
[1764178484477,0.850017,3005.0,3004.9,2.522829]
[1764178484689,0.850017,3005.0,3004.9,2.81829769]
[1764178484990,0.850017,3005.0,3004.9,6.68708291]
[1764178485197,0.850017,3005.0,3004.9,0.79283491]
[1764178485493,0.850017,3005.0,3004.3,0.1]
[1764178485494,0.1819,3006.8,3004.3,0.1]
[1764178485640,0.1819,3006.8,3005.7,0.1]
[1764178485841,0.1819,3006.8,3004.8,0.1]
[1764178486040,0.1819,3006.8,3004.4,15.400884]
[1764178486041,0.4568,3006.7,3004.4,30.0]
[1764178486355,0.4568,3006.7,3004.6,30.0]
[1764178486356,0.08206,3006.7,3004.6,30.0]
[1764178486555,7.34518053,3007.9,3004.6,30.0]
[1764178486556,0.08206,3007.9,3005.1,0.0008]
[1764178486756,0.08206,3007.9,3004.6,0.405504]
[1764178486757,3.50770192,3006.8,3005.5,2.510274]
[1764178486957,0.1819,3008.0,3004.7,0.54611942]
[1764178486958,0.1819,3008.0,3006.7,0.1]
[1764178487144,0.1819,3008.0,3005.0,0.72559411]
[1764178487145,0.08206,3007.8,3005.9,3.451055]
[1764178487337,0.08206,3007.8,3007.7,0.1]
[1764178487542,3.51937989,3008.4,3004.5,9.98501067]
[1764178487543,0.1819,3008.9,3006.7,30.0]
[1764178487772,0.1819,3008.9,3006.6,0.241]
[1764178487773,0.08206,3008.7,3008.5,0.1]
[1764178488070,0.08206,3008.7,3006.6,0.241]
[1764178488071,0.241,3009.4,3006.6,0.241]
[1764178488072,0.4568,3010.1,3007.2,0.0008]
[1764178488238,0.1819,3010.8,3006.7,0.405504]
[1764178488239,0.4568,3008.9,3008.5,0.1]
[1764178488439,0.4568,3008.9,3006.6,0.291]
[1764178488440,6.65282305,3009.0,3008.7,0.1]
[1764178488637,6.65282305,3009.0,3006.0,0.72559411]
[1764178488638,0.00609251,3009.0,3008.9,0.1]
[1764178488863,0.08206,3008.9,3005.6,0.05]
[1764178489045,2.40417373,3008.8,3006.6,0.0992]
[1764178489246,2.40417373,3008.8,3008.6,0.0992]
[1764178489247,0.34258,3008.7,3008.6,0.0992]
[1764178489447,0.34258,3008.7,3005.6,3.3271227]
[1764178489448,0.10058,3008.6,3007.7,0.0992]
[1764178489646,0.6387,3008.5,3006.3,2.027801]
[1764178489835,0.6387,3008.5,3004.6,2.85703058]
[1764178489836,7.34518053,3008.1,3007.2,0.0992]
[1764178490042,0.4568,3008.4,3004.8,30.0]
[1764178490271,7.34518053,3008.1,3004.9,30.0]
[1764178490475,7.34518053,3008.1,3004.9,0.405504]
[1764178490476,0.10058,3007.7,3004.9,0.405504]
[1764178490773,0.72559411,3008.0,3004.5,0.243]
[1764178490774,0.4568,3008.0,3007.8,0.09988]
[1764178490974,0.10058,3007.9,3007.8,0.09988]
[1764178491272,13.29566228,3008.5,3005.9,0.244]
[1764178491273,0.1819,3008.7,3006.3,0.05]
[1764178491475,0.00609251,3009.0,3005.9,0.244]
[1764178491476,3.32946015,3009.0,3008.9,0.09988]
[1764178491680,0.00609251,3009.0,3008.9,0.09988]
[1764178491993,3.66246636,3009.0,3008.9,0.09988]
[1764178492269,3.78625575,3009.0,3008.8,0.09988]
[1764178492446,3.78625575,3009.0,3005.2,16.63782775]
[1764178492447,6.65282655,3009.0,3006.0,15.809892]
[1764178492647,3.32947307,3009.0,3008.9,0.09988]
[1764178492849,3.66242038,3009.0,3008.9,0.09988]
[1764178493050,3.66242038,3009.0,3007.7,0.05]
[1764178493051,0.00609251,3009.0,3007.7,0.05]
[1764178493262,0.00609251,3009.0,3007.2,0.05]
[1764178493460,0.00609251,3009.0,3008.9,0.09988]
[1764178493971,0.00609251,3009.0,3006.5,7.34518053]
[1764178493972,4.03225575,3009.0,3008.8,0.09988]
[1764178494268,4.03225575,3009.0,3005.2,2.85703058]
[1764178494269,0.46289251,3009.0,3007.0,0.405504]
[1764178494472,0.46289251,3009.0,3007.3,9.025667]
[1764178494638,3.78626042,3009.0,3007.5,5.679949]
[1764178494841,3.78626042,3009.0,3008.9,0.09937]
[1764178495086,3.78626042,3009.0,3006.6,0.05]
[1764178495087,0.4568,3008.9,3006.6,0.05]
[1764178495270,1.18239411,3008.9,3008.8,0.09937]
[1764178495467,1.18239411,3008.9,3004.5,11.31019408]
[1764178495468,0.1819,3006.7,3006.5,0.09937]
[1764178495667,0.1819,3006.7,3004.5,3.32833864]
[1764178495668,0.1819,3006.7,3006.6,0.09937]
[1764178495872,0.248,3007.1,3006.6,0.09937]
[1764178495873,0.1819,3007.1,3006.6,0.09937]
[1764178496061,0.1819,3007.1,3007.0,0.09937]
[1764178496371,0.4299,3007.1,3007.0,0.09937]
[1764178496868,3.96416307,3007.1,3007.0,0.09937]
[1764178497168,10.67004789,3007.7,3003.7,10.67429753]
[1764178497169,0.6387,3007.8,3005.2,0.05]
[1764178497369,0.6387,3007.8,3007.7,0.09937]
[1764178497370,0.4299,3007.8,3007.7,0.09937]
[1764178497608,0.1819,3007.8,3007.7,0.09937]
[1764178497773,0.6387,3007.8,3007.7,0.09937]
[1764178497976,0.8867,3007.8,3007.7,0.09937]
[1764178498141,0.6387,3007.8,3007.7,0.09937]
[1764178498345,0.6387,3007.8,3004.9,3.3277877]
[1764178498346,1.13109811,3007.7,3004.5,7.476737]
[1764178498548,7.75068453,3006.9,3005.0,0.0008]
[1764178498889,7.75068453,3006.9,3004.4,0.0665]
[1764178498890,0.72559411,3006.6,3006.5,0.1]
[1764178499044,0.72559411,3006.6,3006.3,0.1]
[1764178499239,0.4568,3006.5,3006.3,0.1]
[1764178499571,1.13109811,3006.4,3004.4,0.133]
[1764178499901,0.72559411,3006.4,3005.2,0.1]
[1764178500042,13.30362188,3006.7,3005.4,5.374726]
[1764178500043,3.32590547,3006.7,3005.4,5.374726]
[1764178500367,3.32590547,3006.7,3004.7,0.72559411]
[1764178500368,0.00609251,3009.0,3005.9,0.405504]
[1764178500369,3.9630331,3008.2,3005.9,0.405504]
[1764178500583,0.00609251,3009.0,3006.6,0.72559411]
[1764178500584,0.18799251,3009.0,3006.6,0.72559411]
[1764178500741,0.18799251,3009.0,3006.1,0.405504]
[1764178500742,0.00609251,3009.0,3008.9,0.1]
[1764178501143,0.4995,3010.0,3008.9,3.48997369]
[1764178501404,0.4995,3010.0,3009.9,5.378903]
[1764178501699,0.4995,3010.0,3009.9,8.7800221]
[1764178501918,0.4995,3010.0,3009.3,6.024358]
[1764178502062,0.4995,3010.0,3009.1,0.0008]
[1764178502063,3.8217605,3010.0,3009.1,0.0008]
[1764178502265,3.8217605,3010.0,3009.6,0.0992]
[1764178502266,21.84051979,3010.0,3009.6,0.0992]
[1764178502574,0.597101,3009.6,3009.2,0.0992]
[1764178502793,0.405504,3009.7,3007.3,2.818236]
[1764178502794,1.002605,3009.2,3007.3,2.818236]
[1764178503093,0.90749411,3009.3,3006.7,0.25]
[1764178503094,0.624621,3008.7,3006.7,0.25]
[1764178503262,0.624621,3009.1,3006.9,7.685751]
[1764178503592,0.4568,3009.2,3006.7,0.25]
[1764178503593,0.7068,3009.0,3008.4,0.1]
[1764178503893,0.4568,3009.0,3008.4,0.1]
[1764178504068,0.4568,3008.9,3006.8,0.0604]
[1764178504487,0.1819,3009.3,3008.6,0.1]
[1764178504691,4.18768415,3009.3,3009.2,0.1]
[1764178504963,4.64448415,3009.3,3009.2,0.1]
[1764178505389,5.04998815,3009.3,3009.2,0.1]
[1764178505592,12.42164612,3009.3,3008.9,0.1]
[1764178505779,12.42164612,3009.3,3008.9,0.09936218]
[1764178505780,0.7068,3009.2,3008.9,0.09936218]
[1764178505980,1.26716461,3009.1,3008.9,0.09936218]
[1764178506180,0.249,3009.0,3008.9,0.09936218]
[1764178506385,0.1819,3009.3,3007.4,0.0604]
[1764178506583,0.249,3009.5,3009.4,0.09936218]
[1764178506783,3.57181109,3009.5,3009.4,0.09936218]
[1764178506991,4.79927227,3009.5,3009.4,0.09936218]
[1764178507168,4.79927227,3009.5,3006.7,0.3]
[1764178507169,0.73836118,3009.5,3008.8,0.1]
[1764178507367,0.4995,3010.0,3008.9,5.172603]
[1764178507603,0.4995,3010.0,3009.0,0.41373696]
[1764178507900,0.4995,3010.0,3009.9,0.1]
[1764178510074,4.31085913,3010.0,3009.9,0.1]
[1764178510269,0.4995,3010.0,3009.9,0.1]
[1764178511289,0.4995,3010.0,3009.9,7.823215]
[1764178511478,0.4995,3010.0,3009.9,8.12063226]
[1764178511677,0.4995,3010.0,3009.9,5.635758]
[1764178512313,0.4995,3010.0,3009.9,2.988114]
[1764178512638,0.4995,3010.0,3009.9,0.1]
[1764178512639,4.31085913,3010.0,3009.9,0.1]
[1764178512786,4.5850589,3010.0,3009.9,0.1]
[1764178512971,3.82175913,3010.0,3009.9,0.1]
[1764178513167,4.31085913,3010.0,3009.9,0.1]
[1764178514206,0.4995,3010.0,3009.9,0.1]
[1764178514713,0.4995,3010.0,3009.9,6.39580773]
[1764178515310,0.4995,3010.0,3009.9,3.29365773]
[1764178515506,0.4995,3010.0,3009.9,3.31922573]
[1764178515686,0.4995,3010.0,3009.9,0.39433473]
[1764178515887,0.4995,3010.0,3009.9,0.1]
[1764178516391,0.4995,3010.0,3009.9,0.39420774]
[1764178516598,3.32126606,3010.9,3009.9,0.29420774]
[1764178516793,3.32126606,3010.9,3009.1,0.001]
[1764178516794,9.96446007,3010.7,3009.1,0.001]
[1764178517114,0.97359411,3010.6,3010.5,0.1]
[1764178517314,1.45969411,3010.6,3010.5,0.1]
[1764178517811,3.32148669,3010.7,3010.6,0.1]
[1764178518012,3.32148669,3010.7,3009.1,0.0614]
[1764178518013,13.53394676,3010.7,3009.1,0.001]
[1764178518212,1.38941944,3010.6,3010.1,0.1]
[1764178518415,1.38941944,3010.6,3009.2,13.819112]
[1764178518716,10.69922205,3010.5,3009.3,0.29441452]
[1764178518914,0.97359411,3010.4,3009.1,0.001]
[1764178519216,0.248,3010.3,3010.2,0.1]
[1764178519422,1.13109811,3010.2,3009.1,0.001]
[1764178519721,0.1969,3009.3,3009.1,0.001]
[1764178519889,0.97359411,3009.2,3007.4,3.588406]
[1764178520089,0.97359411,3009.2,3007.2,0.248]
[1764178520090,1.86519811,3009.2,3009.1,0.0992]
[1764178520304,2.80492597,3009.2,3009.1,0.1]
[1764178520621,0.4861,3009.2,3009.1,0.1]
[1764178520788,0.4861,3009.2,3007.2,0.248]
[1764178520789,3.32314236,3009.2,3007.7,4.899597]
[1764178521132,0.1969,3009.3,3009.2,0.1]
[1764178521133,3.5199424,3009.3,3009.2,0.1]
[1764178521421,3.3230424,3009.3,3009.2,0.1]
[1764178521807,4.0561424,3009.3,3009.2,0.1]
[1764178521990,4.54705666,3009.3,3009.2,0.1]
[1764178522194,4.79405666,3009.3,3009.2,0.1]
[1764178522408,1.22401426,3009.3,3009.2,0.1]
[1764178522607,3.80913193,3009.3,3009.2,0.1]
[1764178522789,4.05613193,3009.3,3009.2,0.1]
[1764178522986,1.13109811,3009.2,3009.0,0.1]
[1764178523218,1.13109811,3009.2,3006.6,2.91743058]
[1764178523219,1.13109811,3009.0,3006.7,0.3606]
[1764178523421,1.13109811,3009.0,3007.4,0.1]
[1764178523623,1.13109811,3009.0,3008.0,0.1]
[1764178523624,0.405504,3008.8,3008.0,0.1]
[1764178523792,1.40703786,3008.9,3006.7,0.3606]